[Event "Chinese League Division-A 2024"]
[Site "Fuling Chongqing"]
[Date "2024.07.03"]
[Round "7.30"]
[White "Guo, Qi"]
[Black "Du, Yuxin"]
[Result "0-1"]
[ECO "D35"]
[WhiteElo "2362"]
[BlackElo "1960"]
[Annotator "TA"]
[PlyCount "96"]
[EventDate "2024.06.28"]
[EventType "team-tourn"]
[EventCountry "CHN"]
[SourceTitle "playchess.com"]
[Source "ChessBase"]
[SourceQuality "1"]
[TimeControl "40/5400+30:1800+30"]

{[%evp 9,96,15,12,6,14,0,5,-10,-14,-23,-16,-26,-19,-21,-23,-34,-27,-10,20,-55,-24,-55,-44,-96,-80,-80,-36,-42,-39,-50,-41,-40,57,47,47,-13,40,0,24,22,18,12,36,35,38,0,16,17,30,10,27,29,30,0,0,0,0,0,0,0,0,0,0,0,0,0,0,0,80,103,112,110,115,57,60,52,61,-2,-10,-234,-202,-29983,-29984,-29984,-29985,-29985,-29986,-29995,-29996]} 1. d4 {[%emt 0:00:03]} Nf6 {[%emt 0:00:17][%cal Bg8f6,Bf6h5,Bh5g7,Bg7e6][%mdl 32]} 2. c4 {[%emt 0:00:06]} e6 {[%emt 0:00:05]} 3. Nf3 {[%emt 0:00:24]} d5 {[%emt 0:00:40]} 4. Nc3 {[%emt 0:00:07]} Be7 {[%emt 0:00:28]} 5. cxd5 {[%emt 0:00:16]} exd5 {[%emt 0:00:07]} 6. Bf4 {[%emt 0:00:26]} Nh5 {[%emt 0:03:38]} 7. Be5 {[%emt 0:00:37]} Nc6 {[%emt 0:09:31]} 8. h3 {[%emt 0:14:26] The position is equal.} Nxe5 {[%emt 0:19:05]} 9. dxe5 {[%emt 0:00:44][%cal Og2g4]} c6 {[%emt 0:00:24]} 10. e3 {[%emt 0:03:10] g4 would now be deadly.} g6 $1 {[%emt 0:01:03]} 11. Qc2 {[%emt 0:02:30]} Ng7 {[%emt 0:07:39]} 12. O-O-O {[%emt 0:06:20]} Qa5 {[%emt 0:04:53]} 13. Nd4 {[%emt 0:03:21]} Ne6 {[%emt 0:06:52]} 14. Nb3 {[%emt 0:02:35]} (14. Kb1 $11) 14... Qb6 {[%emt 0:01:18]} 15. g4 {[%emt 0:02:00]} a5 {[%emt 0:04:58]} 16. Na4 {[%emt 0:04:32]} ({White should try} 16. Nd4 $15) 16... Qa7 $17 {[%emt 0:04:36]} 17. Nd4 {[%emt 0:01:09]} Nxd4 {[%emt 0:05:04]} 18. exd4 {[%emt 0:00:34]} h5 {[%emt 0:09:11]} 19. Rg1 {[%emt 0:01:43]} hxg4 {[%emt 0:01:15]} 20. hxg4 {[%emt 0:00:06]} Bg5+ {[%emt 0:06:18]} (20... b5 $15 21. Nc5 Bxc5 22. dxc5 Rh2) 21. Kb1 $14 {[%emt 0:00:03]} Bd7 {[%emt 0:04:59]} 22. Qb3 {[%emt 0:08:49]} (22. Nc5 $14 O-O-O 23. Rg3) 22... O-O-O {[%emt 0:02:41]} (22... Be7 $11) 23. Be2 {[%emt 0:05:01]} Be7 {[%emt 0:03:44]} 24. Nb6+ {[%emt 0:03:22]} Kc7 {[%emt 0:00:39]} 25. Nxd7 {[%emt 0:00:15]} Rxd7 {[%emt 0:00:19]} (25... a4 {is more complex.} 26. Qf3 Kxd7 27. Qxf7 Rdf8) 26. f4 {[%emt 0:00:21][%cal Bf2f4,Bf4f5,Bf5f6][%mdl 32]} Rh2 {[%emt 0:01:36]} 27. Qf3 {[%emt 0:00:48]} (27. Qe3 {keeps more tension.} Qb6 28. f5 a4 29. f6) 27... Rd8 {[%emt 0:01:40]} 28. f5 {[%emt 0:00:06]} Rdh8 {[%emt 0:00:25]} 29. Rg2 {[%emt 0:05:29]} Rxg2 {[%emt 0:00:43]} (29... gxf5 {is interesting.} 30. gxf5 Qb6 31. e6 Ba3) 30. Qxg2 {[%emt 0:00:02]} Qb6 {[%emt 0:00:38]} 31. Qg3 {[%emt 0:01:26]} a4 {[%emt 0:00:32][%cal Ba5a4,Ba4a3][%mdl 32]} 32. f6 {[%emt 0:01:03]} a3 {[%emt 0:00:29][%csl Ga3][%cal Rb6b2]} 33. b3 {[%emt 0:00:15]} (33. fxe7 $2 Qxb2#) 33... Bf8 {[%emt 0:00:25]} 34. g5 {[%emt 0:00:09]} Qb4 {[%emt 0:00:32][%cal Oh8h1]} 35. Bg4 {[%emt 0:01:20][%cal Be2g4,Bg4d7,Bd7e8,Be8g6][%mdl 32]} Kb6 {[%emt 0:00:36]} 36. Kc2 {[%emt 0:00:46]} Ka7 {[%emt 0:00:36]} 37. Bd7 {[%emt 0:01:20]} Rh7 {[%emt 0:00:30]} 38. Be8 {[%emt 0:04:17]} Qb6 {[%emt 0:00:30] [#]} (38... Qb5 $11 39. Qd3 Qa5) 39. e6 $1 $16 {[%emt 0:02:46]} fxe6 {[%emt 0:00:11]} 40. Bxg6 {[%emt 0:00:00]} Rc7 {[%emt 0:00:00] [#] Black is weak on the light squares} 41. Kb1 {[%emt 0:01:03]} (41. Kd3 $1 $16 {[%cal Rd3e2]}) 41... c5 $14 {[%emt 0:04:00]} 42. Bc2 {[%emt 0:02:01] Black must now prevent g6.} cxd4 {[%emt 0:02:10]} 43. g6 {[%emt 0:01:01]} (43. Qf4 $14 Rc3 44. Qxd4 (44. Rxd4 Qc5 $11) (44. g6 d3 $11) 44... Qxd4 45. Rxd4) 43... Qc5 $11 {[%emt 0:05:08] Really sharp!} 44. Rd2 {[%emt 0:17:21] Loses the game.} (44. Qd3 $11 {and White is okay.} e5 45. b4 Qxb4+ 46. Qb3) 44... Bh6 $40 {[%emt 0:04:20][%mdl 128] White is in trouble.} 45. g7 $2 {[%emt 0:00:27] [#]} (45. Qd3 $19 e5 (45... Bxd2 46. g7 $11) 46. Rd1) 45... Be3 $1 {[%emt 0:07:27] Black mates.} ({Weaker is} 45... Bxd2 46. Qd3 Bh6 (46... Qxc2+ $2 47. Qxc2 Rxc2 48. Kxc2 $18) 47. g8=Q $11 (47. g8=B {is a self mate.} Qb4 48. Ka1 Rxc2 49. Qxc2 Qe1+ 50. Qb1 Qc3+)) 46. Qxc7 {[%emt 0:09:00]} Qxc7 {[%emt 0:00:25]} 47. Rd3 {[%emt 0:00:10]} Qg3 {[%emt 0:05:05]} 48. Rd1 {[%emt 0:01:43] [#]} d3 $1 {[%emt 0:01:21] Weighted Error Value: White=0.33/Black=0.12 (very precise) .  Loses game:     	White=1     	---        Mistake:       	White=6     	Black=3      Inaccurate:     	White=4     	Black=3      OK:         	White=13    	Black=19     Best:        	White=2     	Black=6      Strong:       	---       	Black=2      Brilliant:      	White=1     	---} 0-1

[Event "Chinese League Division-A 2024"]
[Site "Fuling Chongqing"]
[Date "2024.07.04"]
[Round "8.1"]
[White "Yu, Yangyi"]
[Black "Jiang, Haochen"]
[Result "1-0"]
[ECO "D35"]
[WhiteElo "2715"]
[BlackElo "2290"]
[Annotator "TA"]
[PlyCount "79"]
[EventDate "2024.06.28"]
[EventType "team-tourn"]
[EventCountry "CHN"]
[SourceTitle "playchess.com"]
[Source "ChessBase"]
[SourceQuality "1"]
[TimeControl "40/5400+30:1800+30"]

{[%evp 19,79,-1,0,-7,33,0,7,-6,17,16,25,20,17,14,111,104,134,135,142,127,136,131,152,129,143,111,111,112,129,120,135,133,135,135,136,125,138,138,156,131,162,153,139,165,250,250,443,429,547,548,543,546,576,576,580,581,639,646,632,638,623,617]} 1. d4 {[%emt 0:00:03]} Nf6 {[%emt 0:00:12]} 2. c4 {[%emt 0:00:09]} e6 {[%emt 0:00:06]} 3. Nf3 {[%emt 0:00:31]} d5 {[%emt 0:00:21]} 4. Nc3 {[%emt 0:00:08]} Be7 {[%emt 0:00:39]} 5. cxd5 {[%emt 0:00:45]} exd5 {[%emt 0:00:17]} 6. Bf4 {[%emt 0:00:17]} c6 {[%emt 0:01:15]} 7. Qc2 {[%emt 0:01:27]} g6 {[%emt 0:01:33]} 8. e3 {[%emt 0:01:23]} Bf5 {[%emt 0:00:13]} 9. Bd3 {[%emt 0:00:18]} Bxd3 {[%emt 0:00:22]} 10. Qxd3 {[%emt 0:00:09]} Nbd7 {[%emt 0:02:08]} 11. h4 {[%emt 0:00:49]} Nf8 {[%emt 0:01:56]} 12. Be5 {[%emt 0:01:59][%cal Oh4h5]} N8d7 {[%emt 0:02:56]} 13. Bf4 {[%emt 0:04:25] The position is equal.} Nf8 {[%emt 0:01:00]} 14. O-O-O {[%emt 0:01:17]} Ne6 {[%emt 0:04:19]} 15. Be5 {[%emt 0:00:28][%cal Oh4h5]} Bd6 {[%emt 0:02:19]} 16. Kb1 {[%emt 0:02:28]} Rg8 {[%emt 0:15:16] [#]} (16... O-O $11) 17. Qc2 $1 $16 {[%emt 0:02:42] White is more active.} Be7 {[%emt 0:23:11]} 18. Bxf6 {[%emt 0:05:04]} Bxf6 {[%emt 0:00:08] [#]} 19. e4 $1 {[%emt 0:00:07]} Qa5 {[%emt 0:06:42]} 20. exd5 {[%emt 0:05:38]} cxd5 {[%emt 0:00:31]} 21. Rhe1 {[%emt 0:02:10][%cal Bh1e1,Be1e6,Be6a6][%mdl 32]} Kf8 {[%emt 0:08:07]} 22. Qb3 {[%emt 0:00:44][%csl LRb7,LRd5]} Rd8 {[%emt 0:04:39]} 23. Qxb7 {[%emt 0:02:17]} Kg7 {[%emt 0:11:06] ...Rb8 is the strong threat.} 24. Rxe6 {[%emt 0:01:19]} Rb8 {[%emt 0:01:10][%cal Bd8b8,Bb8b7,Bb7b2][%mdl 32]} 25. Ra6 $1 {[%emt 0:01:08]} (25. Qxd5 $6 Qxd5 26. Nxd5 fxe6 $14) 25... Qxc3 {[%emt 0:00:11]} 26. bxc3 $40 {[%emt 0:00:17][%mdl 128] White wants a kill.} (26. Qxd5 $2 Qxb2#) 26... Rxb7+ {[%emt 0:00:07]} 27. Kc2 {[%emt 0:00:05]} Rgb8 {[%emt 0:00:46]} 28. Kd3 {[%emt 0:01:35]} Rb2 {[%emt 0:00:19]} 29. Rf1 {[%emt 0:12:11]} ({Resist} 29. Rxa7 $6 Rxf2 30. Rd2 Rxd2+ 31. Kxd2 Rb2+ 32. Ke3 Rc2 $14) 29... Re8 {[%emt 0:02:26]} 30. g4 {[%emt 0:00:34][%cal Bg2g4,Bg4g5][%mdl 32]} Re4 {[%emt 0:03:33]} 31. g5 {[%emt 0:00:49]} ({Much less strong is} 31. Rxa7 $6 Rxg4 32. Ne5 Bxe5 33. dxe5 Rxh4 $11) 31... Bd8 {[%emt 0:00:35]} (31... Be7 $142) 32. Rxa7 $18 {[%emt 0:01:12]} Rf4 $2 {[%emt 0:00:54]} (32... Re7 33. Rxe7 Bxe7) 33. Ne5 {[%emt 0:01:14] White is clearly winning.} Rxh4 {[%emt 0:00:44]} 34. Nxf7 {[%emt 0:03:16]} ({Less strong is} 34. Rxf7+ Kg8 $16) 34... Bb6 {[%emt 0:01:33]} 35. Rd7 {[%emt 0:01:40]} Rh3+ {[%emt 0:05:54]} 36. f3 {[%emt 0:00:09]} Rhh2 {[%emt 0:00:17]} 37. Ne5+ {[%emt 0:00:12]} Kf8 {[%emt 0:00:11]} 38. Rxd5 {[%emt 0:01:10]} Bc7 {[%emt 0:00:43]} 39. Nd7+ {[%emt 0:05:34]} Kf7 {[%emt 0:00:13]} 40. Nf6 {[%emt 0:00:00] Weighted Error Value: White=0.05 (flawless) /Black=0.32.  Mistake:       	---       	Black=3      Inaccurate:     	White=1     	Black=1      OK:         	White=14    	Black=7      Best:        	White=2     	Black=1      Strong:       	White=3     	---} 1-0

[Event "Chinese League Division-A 2024"]
[Site "Fuling Chongqing"]
[Date "2024.07.04"]
[Round "8.2"]
[White "Wang, Zihang"]
[Black "Li, Chao b"]
[Result "0-1"]
[ECO "B01"]
[WhiteElo "2028"]
[BlackElo "2645"]
[Annotator "TA"]
[PlyCount "90"]
[EventDate "2024.06.28"]
[EventType "team-tourn"]
[EventCountry "CHN"]
[SourceTitle "playchess.com"]
[Source "ChessBase"]
[SourceQuality "1"]
[TimeControl "40/5400+30:1800+30"]

{[%evp 9,90,43,57,54,58,65,60,28,20,33,8,11,25,9,22,5,40,4,27,21,45,0,12,2,72,72,59,62,63,52,79,53,54,32,38,0,0,-84,-88,-149,-129,-194,-205,-186,62,-218,-203,-235,-216,-213,-157,-210,-208,-187,-174,-229,-219,-347,-363,-431,-413,-458,-458,-458,-428,-416,-385,-519,-493,-664,-651,-774,-804,-900,-913,-912,-886,-864,-775,-726,-726,-834,-813]} 1. e4 {[%emt 0:00:03]} d5 {[%emt 0:00:11]} 2. exd5 {[%emt 0:00:08]} Qxd5 {[%emt 0:00:04]} 3. Nc3 {[%emt 0:00:13]} Qa5 {[%emt 0:00:09]} 4. d4 {[%emt 0:00:52]} Nf6 {[%emt 0:00:07]} 5. Nf3 {[%emt 0:00:20]} g6 {[%emt 0:00:07]} 6. Bd2 {[%emt 0:10:31]} Bg7 {[%emt 0:00:19]} 7. Bc4 {[%emt 0:03:25][%cal Oc3d5]} c5 {[%emt 0:00:13]} 8. Qe2 {[%emt 0:23:22] Strongly threatening Ng5. White is slightly better.} cxd4 {[%emt 0:19:47]} 9. Nxd4 {[%emt 0:15:27]} Qb6 {[%emt 0:20:38][%csl LRb2,LRd4]} 10. Nb3 {[%emt 0:19:36]} O-O {[%emt 0:03:30]} 11. O-O-O {[%emt 0:01:33][%cal Oh2h4]} Nc6 {[%emt 0:03:16]} 12. Nb5 {[%emt 0:08:33]} Ng4 {[%emt 0:01:39][%cal Oc6e5]} 13. f3 {[%emt 0:02:57]} a6 {[%emt 0:01:21]} (13... Nce5 {looks sharper.} 14. Bd5 Nf2 15. Be3 Nfd3+) 14. Nc3 {[%emt 0:01:42]} Nf6 {[%emt 0:00:11]} 15. g4 {[%emt 0:00:56]} Qc7 {[%emt 0:04:15]} 16. g5 {[%emt 0:01:45]} Nh5 {[%emt 0:00:07]} (16... Nd7 $1 $11) 17. Nd5 $16 {[%emt 0:01:32]} Qe5 {[%emt 0:00:39]} 18. Qxe5 {[%emt 0:00:28]} Bxe5 {[%emt 0:00:15]} 19. Na5 {[%emt 0:01:51] Threatens to win with Nxc6.} Ra7 {[%emt 0:04:59]} 20. Nxc6 {[%emt 0:03:15]} bxc6 {[%emt 0:00:03]} 21. Nb4 {[%emt 0:00:04]} Bd6 $1 {[%emt 0:02:59]} 22. Nxc6 {[%emt 0:01:11]} Rc7 {[%emt 0:00:03]} 23. Bd5 {[%emt 0:01:15]} (23. Na5 $11) 23... Nf4 $1 $17 {[%emt 0:07:24]} 24. Be4 {[%emt 0:00:22] [#]} (24. Bxf4 $142 Bxf4+ 25. Kb1) 24... Bb7 $1 {[%emt 0:00:07]} 25. Nd4 {[%emt 0:00:37] [#]} (25. Nb4 $17 a5 26. Bxb7 Rxb7 27. Nc6) 25... Bxe4 $1 $19 {[%emt 0:00:31]} 26. fxe4 {[%emt 0:00:24]} Nd3+ {[%emt 0:00:06]} 27. Kb1 {[%emt 0:00:11] This costs White the game.} Nf2 {[%emt 0:00:02][%csl LRd1,LRe4,LRh1]} 28. Rdf1 {[%emt 0:01:25]} Nxh1 {[%emt 0:06:32]} 29. Rxh1 {[%emt 0:00:02]} e5 {[%emt 0:00:10]} 30. Ne2 {[%emt 0:00:53]} (30. Nb3 $17 {keeps fighting.}) 30... Rc4 {[%emt 0:00:04]} 31. Ng3 {[%emt 0:00:33]} f5 {[%emt 0:00:25] And now ...f4 would win.} 32. gxf6 {[%emt 0:00:14]} (32. b3 {was necessary.} Rc6 33. Ne2) 32... Rxf6 {[%emt 0:00:05]} 33. Bc3 {[%emt 0:00:44]} (33. Be1 $142) 33... h5 {[%emt 0:02:42]} 34. Re1 {[%emt 0:00:31]} Rf2 {[%emt 0:02:25]} 35. Nf1 {[%emt 0:00:30]} Bb4 {[%emt 0:00:11]} 36. Bxb4 {[%emt 0:00:29]} Rxb4 {[%emt 0:00:05][%mdl 4096] Endgame. KRR-KRN} 37. Kc1 {[%emt 0:00:27]} Rd4 {[%emt 0:00:22]} 38. c3 {[%emt 0:00:37]} Rd3 {[%emt 0:01:44] Black is clearly winning.} 39. a4 {[%emt 0:00:17]} h4 {[%emt 0:01:19]} 40. a5 {[%emt 0:00:00]} h3 {[%emt 0:00:00]} 41. c4 {[%emt 0:03:51]} Rd4 {[%emt 0:07:33]} 42. Ne3 {[%emt 0:00:23]} Rxh2 {[%emt 0:02:27]} 43. c5 {[%emt 0:00:15]} Rf2 {[%emt 0:00:29]} 44. Rh1 {[%emt 0:00:57]} Rf3 {[%emt 0:00:49]} 45. Nd5 {[%emt 0:00:24]} Rc4+ {[%emt 0:01:15] Weighted Error Value: White=0.42/Black=0.12 (very precise) .  Loses game:     	White=1     	---        Mistake:       	White=6     	Black=1      Inaccurate:     	White=7     	Black=2      OK:         	White=8     	Black=15     Best:        	White=1     	Black=3      Strong:       	---       	Black=4} 0-1

[Event "Chinese League Division-A 2024"]
[Site "Fuling Chongqing"]
[Date "2024.07.04"]
[Round "8.3"]
[White "Xiu, Deshun"]
[Black "Shen, Fuyan"]
[Result "1-0"]
[ECO "D12"]
[WhiteElo "2514"]
[BlackElo "1830"]
[Annotator "TA"]
[PlyCount "95"]
[EventDate "2024.06.28"]
[EventType "team-tourn"]
[EventCountry "CHN"]
[SourceTitle "playchess.com"]
[Source "ChessBase"]
[SourceQuality "1"]
[TimeControl "40/5400+30:1800+30"]

{[%evp 13,95,24,24,15,29,11,19,-6,17,0,58,55,96,71,95,97,104,40,49,60,49,53,55,62,43,59,39,44,58,52,67,49,60,51,89,90,106,115,125,88,173,185,181,191,206,197,197,179,192,191,194,185,195,184,200,190,186,181,256,253,264,267,260,268,275,268,299,308,308,307,279,255,264,265,249,245,272,275,264,248,259,247,268,257]} 1. d4 {[%emt 0:00:05]} d5 {[%emt 0:00:06]} 2. c4 {[%emt 0:00:13]} c6 {[%emt 0:00:06]} 3. Nf3 {[%emt 0:00:12]} Nf6 {[%emt 0:00:07]} 4. e3 {[%emt 0:00:08]} Bf5 {[%emt 0:00:30]} 5. Nc3 {[%emt 0:00:11]} e6 {[%emt 0:00:06]} 6. Nh4 {[%emt 0:00:10]} Bg6 {[%emt 0:00:25]} 7. Nxg6 {[%emt 0:01:20]} hxg6 {[%emt 0:00:05]} 8. Bd2 {[%emt 0:00:26]} Nbd7 {[%emt 0:00:54]} 9. Qc2 {[%emt 0:00:16]} Be7 {[%emt 0:02:42]} 10. O-O-O {[%emt 0:05:43] The position is equal.} O-O {[%emt 0:14:38]} 11. Kb1 {[%emt 0:07:44]} a5 {[%emt 0:10:40]} (11... dxc4 $11 12. Bxc4 Rc8) 12. h4 $14 {[%emt 0:13:40]} Qb8 {[%emt 0:19:23][%cal Oa5a4]} 13. cxd5 {[%emt 0:19:58]} cxd5 {[%emt 0:09:24]} 14. f3 {[%emt 0:04:48]} Rc8 {[%emt 0:01:50] [#]} 15. Qb3 {[%emt 0:00:11] Against b5} ({Better is} 15. Bb5 $1 $16) 15... Bb4 {[%emt 0:03:31]} 16. a3 {[%emt 0:06:29]} Bxc3 {[%emt 0:02:57]} 17. Bxc3 {[%emt 0:00:06]} Qc7 {[%emt 0:00:28]} 18. Rc1 {[%emt 0:08:19]} Nb6 {[%emt 0:01:30]} 19. Bd2 {[%emt 0:10:08]} Nc4 {[%emt 0:00:22]} 20. Bxc4 {[%emt 0:00:05]} dxc4 {[%emt 0:00:04]} 21. Qb5 {[%emt 0:00:05]} Qd7 {[%emt 0:01:45]} 22. Qxd7 {[%emt 0:00:45]} Nxd7 {[%emt 0:00:02]} 23. h5 {[%emt 0:00:25][%cal Bh4h5,Bh5h6][%mdl 32]} Kh7 {[%emt 0:15:21] White leaves nothing to chance now.} 24. e4 {[%emt 0:01:49]} f6 {[%emt 0:01:45]} 25. h6 {[%emt 0:09:01]} b5 {[%emt 0:00:05] Black is weak on the dark squares} 26. Rh3 {[%emt 0:10:45] White is more active.} Rh8 {[%emt 0:09:55] [#]} (26... gxh6 $16 27. Rxh6+ Kg7) 27. a4 $1 $18 {[%emt 0:00:00][%mdl 512]} bxa4 {[%emt 0:00:16]} 28. Rxc4 {[%emt 0:00:00]} Rhc8 {[%emt 0:00:04]} 29. hxg7+ {[%emt 0:00:00]} Kxg7 {[%emt 0:00:02]} 30. Rxa4 {[%emt 0:00:00]} Nb6 {[%emt 0:00:11]} 31. Rxa5 {[%emt 0:00:00]} Nc4 {[%emt 0:00:18]} 32. Bh6+ {[%emt 0:00:00]} Kg8 {[%emt 0:00:39]} 33. Rxa8 {[%emt 0:00:00]} Rxa8 {[%emt 0:00:02][%mdl 4096] Endgame. KRB-KRN} 34. Bc1 {[%emt 0:00:00]} Rd8 {[%emt 0:00:50]} 35. Kc2 {[%emt 0:00:13]} Rxd4 {[%emt 0:00:20]} (35... Na5 $142 36. Be3 Rc8+ 37. Kd3 Nc6) 36. b3 {[%emt 0:00:35]} Na5 {[%emt 0:06:15]} 37. Bb2 {[%emt 0:01:58]} Rb4 {[%emt 0:00:10]} 38. Bxf6 {[%emt 0:00:52]} Nxb3 {[%emt 0:00:47]} 39. Bc3 {[%emt 0:00:31]} Rb5 {[%emt 0:00:50]} 40. Rh8+ {[%emt 0:00:00]} Kf7 {[%emt 0:00:00]} 41. Rh7+ {[%emt 0:02:43]} Kf8 {[%emt 0:01:43]} 42. Kd3 {[%emt 0:07:30] aiming for Kc4.} Nc1+ {[%emt 0:13:03]} 43. Kc4 {[%emt 0:00:53]} Rb6 {[%emt 0:00:08]} 44. Rc7 {[%emt 0:01:16] Dodges Rc6+} Rb1 {[%emt 0:09:11]} 45. Bd2 {[%emt 0:04:48]} Ne2 {[%emt 0:02:50]} 46. Bh6+ {[%emt 0:02:26]} Ke8 {[%emt 0:00:06]} 47. Rg7 {[%emt 0:00:29]} Rh1 {[%emt 0:01:56]} 48. Be3 {[%emt 0:00:14] Weighted Error Value: White=0.06 (flawless) /Black=0.14 (very precise) .  Mistake:       	White=1     	Black=3      Inaccurate:     	---       	Black=2      OK:         	White=25    	Black=16     Best:        	---       	Black=4} ({Worse is} 48. Rxg6 Kf7 49. Rg7+ Kf8 $11) 1-0

[Event "Chinese League Division-A 2024"]
[Site "Fuling Chongqing"]
[Date "2024.07.04"]
[Round "8.4"]
[White "Zhao, Yunqing"]
[Black "Wang, Yu A."]
[Result "1/2-1/2"]
[ECO "E11"]
[WhiteElo "1986"]
[BlackElo "2234"]
[Annotator "RC"]
[PlyCount "122"]
[EventDate "2024.06.28"]
[EventType "team-tourn"]
[EventCountry "CHN"]
[SourceTitle "playchess.com"]
[Source "ChessBase"]
[SourceQuality "1"]
[TimeControl "40/5400+30:1800+30"]

1. d4 {[%emt 0:00:03]} Nf6 {[%emt 0:00:02]} 2. c4 {[%emt 0:00:05]} e6 {[%emt 0:00:02]} 3. g3 {[%emt 0:00:07]} Bb4+ {[%emt 0:00:04]} 4. Bd2 {[%emt 0:00:04]} a5 {[%emt 0:00:06]} 5. Bg2 {[%emt 0:00:18]} d5 {[%emt 0:00:39]} 6. Nf3 {[%emt 0:00:55]} O-O {[%emt 0:01:33]} 7. O-O {[%emt 0:00:55]} dxc4 {[%emt 0:03:34]} 8. Qc2 {[%emt 0:04:11]} Bxd2 {[%emt 0:14:04]} 9. Nbxd2 {[%emt 0:06:25]} b5 {[%emt 0:00:32]} 10. e4 {[%emt 0:07:16]} Bb7 {[%emt 0:08:38]} 11. a4 {[%emt 0:07:28]} c6 {[%emt 0:14:22]} 12. e5 {[%emt 0:06:59]} Nd5 {[%emt 0:00:16]} 13. Ne4 {[%emt 0:00:25]} h6 {[%emt 0:03:52]} 14. Nd6 {[%emt 0:09:19]} Ba6 {[%emt 0:04:32]} 15. Nd2 {[%emt 0:07:22]} Nd7 {[%emt 0:02:54]} 16. N2e4 {[%emt 0:03:26]} Rb8 {[%emt 0:09:08]} 17. Rfb1 {[%emt 0:17:38]} b4 {[%emt 0:08:18]} 18. Bf1 {[%emt 0:06:38]} b3 {[%emt 0:06:39]} 19. Qd2 {[%emt 0:03:19]} Nb4 {[%emt 0:00:29]} 20. Rd1 {[%emt 0:01:07]} Nc2 {[%emt 0:03:43]} 21. Rac1 {[%emt 0:00:29]} Rb4 {[%emt 0:00:36]} 22. Qc3 {[%emt 0:03:25]} Nb6 {[%emt 0:00:40]} 23. Nc5 {[%emt 0:00:21]} Nxa4 {[%emt 0:03:36]} 24. Nxa4 {[%emt 0:00:27]} Rxa4 {[%emt 0:00:01]} 25. Nxc4 {[%emt 0:09:49]} Rb4 {[%emt 0:00:28]} 26. Ne3 {[%emt 0:01:43]} Bxf1 {[%emt 0:00:47]} 27. Nxc2 {[%emt 0:01:25]} bxc2 {[%emt 0:00:20]} 28. Rxf1 {[%emt 0:00:03]} Qxd4 {[%emt 0:00:46]} 29. Qxd4 {[%emt 0:00:22]} Rxd4 {[%emt 0:00:02]} 30. Rxc2 {[%emt 0:00:07]} Rb8 {[%emt 0:03:08]} 31. Ra1 {[%emt 0:02:07]} Rb5 {[%emt 0:03:21]} 32. f4 {[%emt 0:00:35]} Rbd5 {[%emt 0:03:13]} 33. Re1 {[%emt 0:01:30]} Rd2 {[%emt 0:02:42]} 34. Re2 {[%emt 0:00:05]} Rxe2 {[%emt 0:00:54]} 35. Rxe2 {[%emt 0:00:04]} Rd3 {[%emt 0:02:15]} 36. Rc2 {[%emt 0:00:52]} Rb3 {[%emt 0:00:32]} 37. Kf2 {[%emt 0:00:35]} Kf8 {[%emt 0:00:29]} 38. h3 {[%emt 0:00:38]} Ke7 {[%emt 0:00:48]} 39. Rxc6 {[%emt 0:00:23]} Rxb2+ {[%emt 0:00:01]} 40. Kf3 {[%emt 0:00:00]} a4 {[%emt 0:00:00]} 41. Rc7+ {[%emt 0:04:43]} Ke8 {[%emt 0:01:31]} 42. Ra7 {[%emt 0:00:48]} Rb3+ {[%emt 0:01:12]} 43. Kg4 {[%emt 0:00:23]} a3 {[%emt 0:04:56]} 44. Kh4 {[%emt 0:04:15]} g6 {[%emt 0:12:23]} 45. Kg4 {[%emt 0:02:06]} Re3 {[%emt 0:01:59]} 46. Kh4 {[%emt 0:04:41]} Kf8 {[%emt 0:03:45]} 47. Kg4 {[%emt 0:03:30]} Kg7 {[%emt 0:00:07]} 48. Kh4 {[%emt 0:09:05]} g5+ {[%emt 0:00:36]} 49. fxg5 {[%emt 0:04:08]} hxg5+ {[%emt 0:00:02]} 50. Kg4 {[%emt 0:00:05]} Kg6 {[%emt 0:00:45]} 51. Ra8 {[%emt 0:02:15]} f5+ {[%emt 0:05:08]} 52. exf6 {[%emt 0:00:05]} Kxf6 {[%emt 0:00:01]} 53. Ra5 {[%emt 0:01:21]} Ke7 {[%emt 0:01:46]} 54. Ra6 {[%emt 0:00:25]} Kd7 {[%emt 0:00:52]} 55. h4 {[%emt 0:00:15]} gxh4 {[%emt 0:00:03]} 56. gxh4 {[%emt 0:00:33]} Ke7 {[%emt 0:00:03]} 57. Kg5 {[%emt 0:00:30]} Rg3+ {[%emt 0:00:21]} 58. Kf4 {[%emt 0:00:21]} Rh3 {[%emt 0:02:00]} 59. Kg5 {[%emt 0:00:33]} Rg3+ {[%emt 0:00:21]} 60. Kf4 {[%emt 0:00:05]} Rb3 {[%emt 0:00:15]} 61. Kg5 {[%emt 0:00:15]} Rg3+ {[%emt 0:01:43]} 1/2-1/2